fUST/lending_fUST_20250302
["ID","MTS","AMOUNT","RATE_DAILY","PERIOD"]
[354976352,1740852648036,-500.0,0.00025826,2]
[354976353,1740852648046,-1159.04,0.00025826,2]
[354976354,1740852648056,-657.27,0.00025826,2]
[354976355,1740852648067,-500.0,0.00025826,2]
[354976356,1740852648078,-39446.22,0.00025826,2]
[354976357,1740852648089,-500.0,0.00025826,2]
[354976358,1740852648099,-893.58,0.00025826,2]
[354976359,1740852648110,-1360.23,0.00025826,2]
[354976360,1740852648120,-500.0,0.00025826,2]
[354976361,1740852648131,-682.73,0.00025826,2]
[354976362,1740852648141,-1972.1,0.00025826,2]
[354976363,1740852648151,-500.0,0.00025826,2]
[354976364,1740852648162,-500.0,0.00025826,2]
[354976365,1740852648172,-1100.88,0.00025826,2]
[354976366,1740852648183,-14683.36,0.00025826,2]
[354976368,1740852648193,-500.0,0.00025826,2]
[354976370,1740852648203,-1569.74,0.00025826,2]
[354976372,1740852648214,-500.0,0.00025826,2]
[354976374,1740852648224,-500.0,0.00025826,2]
[354976376,1740852648237,-500.0,0.00025826,2]
[354976378,1740852648248,-763.87,0.00025826,2]
[354976380,1740852648258,-1612.88,0.00025826,2]
[354976382,1740852648269,-711.0,0.00025826,2]
[354976384,1740852648281,-748.59,0.00025826,2]
[354976386,1740852648292,-500.0,0.00025826,2]
[354976388,1740852648302,-979.62,0.00025826,2]
[354976390,1740852648314,-500.0,0.00025826,2]
[354976392,1740852648325,-500.0,0.00025826,2]
[354976394,1740852648335,-1200.7,0.00025826,2]
[354976396,1740852648345,-500.0,0.00025826,2]
[354976398,1740852648356,-989.41,0.00025826,2]
[354976400,1740852648366,-767.01,0.00025826,2]
[354976402,1740852648376,-500.0,0.00025826,2]
[354976404,1740852648387,-5207.94,0.00025826,2]
[354976406,1740852648398,-500.0,0.00025826,2]
[354976408,1740852648409,-500.0,0.00025826,2]
[354976410,1740852648426,-500.0,0.00025826,2]
[354976412,1740852648437,-502.83082151,0.00025826,2]
[354976414,1740852648447,-708.97,0.00025826,2]
[354976416,1740852648457,-500.0,0.00025826,2]
[354976418,1740852648467,-500.0,0.00025827,2]
[354976420,1740852648477,-513.09952248,0.00025827,2]
[354976422,1740852648488,-500.0,0.00025827,2]
[354976423,1740852648499,-902.31,0.00025827,2]
[354976425,1740852648509,-500.0,0.00025827,2]
[354976427,1740852648520,-500.0,0.00025827,2]
[354976429,1740852648531,-500.0,0.00025827,2]
[354976431,1740852648541,-1276.48,0.00025827,2]
[354976433,1740852648551,-500.0,0.00025827,2]
[354976435,1740852648562,-500.0,0.00025827,2]
[354976437,1740852648573,-500.0,0.00025827,2]
[354976439,1740852648584,-500.0,0.00025827,2]
[354976441,1740852648596,-500.0,0.00025827,2]
[354976443,1740852648607,-500.0,0.00025827,2]
[354976445,1740852648618,-39.33125552,0.00025827,2]
[354976536,1740852649619,-793.49874448,0.00025827,2]
[354976538,1740852649630,-500.0,0.00025827,2]
[354976540,1740852649640,-849.63,0.00025827,2]
[354976542,1740852649651,-500.0,0.00025827,2]
[354976544,1740852649661,-500.0,0.00025827,2]
[354976546,1740852649672,-500.0,0.00025827,2]
[354976548,1740852649682,-1550.21,0.00025827,2]
[354976550,1740852649692,-1178.05,0.00025827,2]
[354976552,1740852649703,-500.0,0.00025827,2]
[354976554,1740852649714,-500.0,0.00025827,2]
[354976556,1740852649724,-500.0,0.00025827,2]
[354976558,1740852649734,-1474.84,0.00025827,2]
[354976560,1740852649744,-542.09,0.00025827,2]
[354976561,1740852649754,-500.0,0.00025827,2]
[354976563,1740852649764,-500.0,0.00025827,2]
[354976565,1740852649775,-500.0,0.00025827,2]
[354976567,1740852649786,-537.61,0.00025827,2]
[354976569,1740852649796,-500.0,0.00025827,2]
[354976571,1740852649806,-500.0,0.00025827,2]
[354976573,1740852649816,-500.0,0.00025827,2]
[354976575,1740852649826,-500.0,0.00025827,2]
[354976577,1740852649837,-563.33,0.00025827,2]
[354976579,1740852649847,-1319.29,0.00025827,2]
[354976581,1740852649857,-500.0,0.00025827,2]
[354976583,1740852649868,-546.64,0.00025827,2]
[354976585,1740852649878,-500.0,0.00025827,2]
[354976587,1740852649888,-624.01,0.00025827,2]
[354976589,1740852649898,-622.58,0.00025827,2]
[354976591,1740852649908,-656.58,0.00025827,2]
[354976593,1740852649918,-524.5237942,0.00025827,2]
[354976595,1740852649928,-500.0,0.00025827,2]
[354976597,1740852649939,-500.0,0.00025827,2]
[354976599,1740852649949,-189.07156084,0.00025827,2]
[354976602,1740852649968,-310.92843916,0.00025827,2]
[354976604,1740852649980,-500.0,0.00025827,2]
[354976605,1740852649990,-500.0,0.00025827,2]
[354976607,1740852650000,-500.0,0.00025827,2]
[354976610,1740852650011,-500.0,0.00025827,2]
[354976611,1740852650021,-500.0,0.00025827,2]
[354976613,1740852650031,-500.0,0.00025827,2]
[354976615,1740852650042,-500.0,0.00025827,2]
[354976617,1740852650052,-500.0,0.00025827,2]
[354976619,1740852650062,-500.0,0.00025827,2]
[354976621,1740852650072,-500.0,0.00025827,2]
[354976623,1740852650082,-510.53170991,0.00025827,2]
[354976625,1740852650093,-500.0,0.00025827,2]
[354976627,1740852650104,-500.0,0.00025827,2]
[354976629,1740852650114,-500.0,0.00025827,2]
[354976631,1740852650124,-500.0,0.00025827,2]
[354976633,1740852650135,-500.0,0.00025827,2]
[354976635,1740852650145,-1322.28,0.00025827,2]
[354976637,1740852650156,-984.91,0.00025827,2]
[354976639,1740852650166,-500.0,0.00025827,2]
[354976641,1740852650176,-940.71,0.00025827,2]
[354976643,1740852650186,-500.0,0.00025827,2]
[354976645,1740852650196,-500.0,0.00025827,2]
[354976647,1740852650209,-753.23,0.00025827,2]
[354976649,1740852650220,-500.0,0.00025827,2]
[354976651,1740852650231,-580.49,0.00025827,2]
[354976653,1740852650246,-500.0,0.00025827,2]
[354976656,1740852650257,-500.0,0.00025827,2]
[354976658,1740852650268,-500.0,0.00025827,2]
[354976660,1740852650280,-500.0,0.00025827,2]
[354976662,1740852650290,-711.85,0.00025827,2]
[354976664,1740852650302,-500.0,0.00025827,2]
[354976665,1740852650313,-686.85,0.00025827,2]
[354976667,1740852650324,-500.0,0.00025827,2]
[354976668,1740852650334,-631.39,0.00025827,2]
[354976669,1740852650345,-500.0,0.00025827,2]
[354976670,1740852650356,-526.43,0.00025827,2]
[354976671,1740852650366,-567.44,0.00025827,2]
[354976672,1740852650376,-500.0,0.00025827,2]
[354976673,1740852650387,-500.0,0.00025827,2]
[354976674,1740852650397,-500.0,0.00025827,2]
[354976675,1740852650408,-571.04,0.00025827,2]
[354976676,1740852650419,-500.0,0.00025827,2]
[354976677,1740852650430,-500.0,0.00025827,2]
[354976678,1740852650441,-1102.13,0.00025827,2]
[354976679,1740852650451,-500.0,0.00025827,2]
[354976680,1740852650462,-1113.85,0.00025827,2]
[354976681,1740852650472,-500.0,0.00025827,2]
[354976682,1740852650483,-500.0,0.00025827,2]
[354976683,1740852650493,-500.0,0.00025827,2]
[354976684,1740852650503,-500.0,0.00025827,2]
[354976685,1740852650515,-500.0,0.00025827,2]
[354976686,1740852650525,-1680.24,0.00025827,2]
[354976687,1740852650536,-500.0,0.00025827,2]
[354976688,1740852650547,-1579.03,0.00025827,2]
[354976689,1740852650557,-500.0,0.00025827,2]
[354976690,1740852650568,-1072.11,0.00025827,2]
[354976692,1740852650579,-500.0,0.00025827,2]
[354976693,1740852650590,-500.0,0.00025827,2]
[354976695,1740852650602,-500.0,0.00025827,2]
[354976697,1740852650613,-732.86,0.00025827,2]
[354976699,1740852650624,-500.0,0.00025827,2]
[354976701,1740852650635,-500.0,0.00025827,2]
[354976703,1740852650645,-500.0,0.00025827,2]
[354976704,1740852650655,-629.75,0.00025827,2]
[354976706,1740852650670,-500.0,0.00025827,2]
[354976708,1740852650681,-680.2,0.00025827,2]
[354976710,1740852650692,-500.0,0.00025827,2]
[354976712,1740852650702,-1198.01,0.00025827,2]
[354976714,1740852650712,-608.56695377,0.00025827,2]
[354976716,1740852650723,-500.0,0.00025827,2]
[354976718,1740852650734,-1114.66,0.00025827,2]
[354976720,1740852650744,-571.59,0.00025827,2]
[354976722,1740852650755,-500.0,0.00025827,2]
[354976724,1740852650765,-618.44,0.00025827,2]
[354976726,1740852650775,-2950.95,0.00025827,2]
[354976728,1740852650786,-500.0,0.00025827,2]
[354976730,1740852650796,-532.98720396,0.00025827,2]
[354976733,1740852650807,-1911.99,0.00025827,2]
[354976734,1740852650817,-500.0,0.00025827,2]
[354976737,1740852650828,-1323.15,0.00025827,2]
[354976739,1740852650839,-1957.7,0.00025827,2]
[354976741,1740852650849,-528.21,0.00025827,2]
[354976743,1740852650860,-563.87,0.00025827,2]
[354976745,1740852650870,-500.0,0.00025827,2]
[354976747,1740852650880,-511.68,0.00025827,2]
[354976749,1740852650890,-500.0,0.00025827,2]
[354976751,1740852650900,-1108.85,0.00025827,2]
[354976752,1740852650910,-500.0,0.00025827,2]
[354976754,1740852650921,-500.0,0.00025827,2]
[354976756,1740852650931,-500.0,0.00025827,2]
[354976758,1740852650941,-2700.33,0.00025827,2]
[354976760,1740852650951,-500.0,0.00025827,2]
[354976762,1740852650962,-337.79262378,0.00025827,2]
[354976764,1740852650972,-500.0,0.00025827,2]
[354976766,1740852650982,-615.28,0.00025827,2]
[354976768,1740852650993,-920.77,0.00025827,2]
[354976770,1740852651003,-851.88,0.00025827,2]
[354976772,1740852651014,-500.0,0.00025827,2]
[354976774,1740852651024,-845.32,0.00025827,2]
[354976776,1740852651035,-500.0,0.00025827,2]
[354976778,1740852651045,-810.18,0.00025827,2]
[354976780,1740852651055,-1229.54306943,0.00025827,2]
[354976796,1740852651490,-3068.32,0.00025824,2]
[354976797,1740852651500,-917.66,0.00025826,2]
[354976798,1740852651511,-235.33693057,0.00025827,2]
[354976799,1740852651521,-500.0,0.00025827,2]
[354976800,1740852651531,-268.68306943,0.00025827,2]
[354976801,1740852652359,-337.78699614,0.00025549,2]
[354976802,1740852652369,-837.13,0.0002555,2]
[354976803,1740852652379,-837.13,0.00025824,2]
[354976804,1740852652389,-1724.57693057,0.00025827,2]
[354976805,1740852652399,-500.0,0.00025827,2]
[354976806,1740852652408,-3914.3025022,0.00025827,2]
[354976807,1740852652452,-1597.1174978,0.00025827,2]
[354976808,1740852652462,-500.0,0.00025827,2]
[354976809,1740852652472,-500.0,0.00025827,2]
[354976810,1740852652482,-695.75,0.00025827,2]
[354976811,1740852652491,-164.07420452,0.00025828,2]
[354976812,1740852652501,-500.0,0.00025828,2]
[354976813,1740852652511,-500.0,0.00025828,2]
[354976814,1740852652520,-500.0,0.00025828,2]
[354976815,1740852652530,-617.81,0.00025828,2]
[354976816,1740852652541,-500.0,0.00025828,2]
[354976817,1740852652556,-500.0,0.00025828,2]
[354976818,1740852652566,-500.0,0.00025828,2]
[354976819,1740852652576,-500.0,0.00025828,2]
[354976820,1740852652586,-500.0,0.00025828,2]
[354976821,1740852652596,-500.0,0.00025828,2]
[354976822,1740852652605,-500.0,0.00025828,2]
[354976823,1740852652615,-500.0,0.00025828,2]
[354976824,1740852652625,-500.0,0.00025828,2]
[354976825,1740852652635,-1416.51,0.00025828,2]
[354976826,1740852652645,-1702.4,0.00025828,2]
[354976827,1740852652655,-688.69,0.00025828,2]
[354976828,1740852652665,-762.87,0.00025828,2]
[354976829,1740852652675,-621.62,0.00025828,2]
[354976830,1740852652685,-1528.54,0.00025828,2]
[354976831,1740852652695,-500.0,0.00025828,2]
[354976832,1740852652704,-500.0,0.00025828,2]
[354976833,1740852652714,-532.32,0.00025828,2]
[354976834,1740852652724,-1097.06,0.00025828,2]
[354976835,1740852652734,-1643.16,0.00025828,2]
[354976836,1740852652743,-500.0,0.00025873,2]
[354976837,1740852652753,-500.0,0.00025873,2]
[354976838,1740852652764,-500.0,0.00025873,2]
[354976839,1740852652774,-500.0,0.00025873,2]
[354976840,1740852652784,-303.8027514,0.00025873,2]
[354976841,1740852652793,-500.0,0.00025873,2]
[354976842,1740852652803,-500.0,0.00025873,2]
[354976843,1740852652813,-276.27411208,0.00025873,2]
[354976844,1740852652822,-500.0,0.00025873,2]
[354976845,1740852652832,-500.0,0.00025873,2]
[354976846,1740852652841,-500.0,0.00025873,2]
[354976847,1740852652851,-500.0,0.00025873,2]
[354976848,1740852652861,-160.34896756,0.00025873,2]
[354976849,1740852652871,-500.0,0.00025873,2]
[354976850,1740852652881,-500.0,0.00025873,2]
[354976851,1740852652891,-500.0,0.00025873,2]
[354976852,1740852652901,-506.07788014,0.00025873,2]
[354976853,1740852652912,-500.0,0.00025873,2]
[354976854,1740852652921,-500.0,0.00025873,2]
[354976855,1740852652932,-500.0,0.00025873,2]
[354976856,1740852652942,-500.0,0.00025873,2]
[354976857,1740852652951,-500.0,0.00025873,2]
[354976858,1740852652961,-500.0,0.00025873,2]
[354976859,1740852652971,-500.0,0.00025873,2]
[354976860,1740852652981,-202.18673858,0.00025873,2]
[354976861,1740852652991,-500.0,0.00025873,2]
[354976862,1740852653002,-500.0,0.00025873,2]
[354976863,1740852653012,-500.87796112,0.00025873,2]
[354976864,1740852653021,-500.0,0.00025873,2]
[354976865,1740852653032,-502.87945039,0.00025873,2]
[354976866,1740852653042,-500.67430993,0.00025873,2]
[354976867,1740852653051,-500.0,0.00025873,2]
[354976868,1740852653061,-500.0,0.00025873,2]
[354976869,1740852653071,-500.0,0.00025873,2]
[354976870,1740852653081,-500.0,0.00025873,2]
[354976871,1740852653091,-502.97282066,0.00025873,2]
[354976872,1740852653102,-500.0,0.00025873,2]
[354976873,1740852653111,-500.0,0.00025873,2]
[354976874,1740852653121,-500.0,0.00025873,2]
[354976875,1740852653131,-969.55844725,0.000259,4]
[354976876,1740852653140,-169.870073,0.00025987,2]
[354976877,1740852653150,-9120.00439044,0.00026,2]
[354976878,1740852653162,-151.0,0.00026022,7]
[354976879,1740852653171,-151.0,0.00026024,7]
[354976880,1740852653181,-160.0,0.00026024,7]
[354976881,1740852653191,-151.0,0.00026024,7]
[354976882,1740852653200,-472.064026,0.00026024,7]
[354976883,1740852653210,-472.064026,0.00026024,7]
[354976884,1740852653220,-151.6007,0.00026024,7]
[354976885,1740852653230,-190.23402,0.00026024,7]
[354976886,1740852653241,-190.23402,0.00026024,7]
[354976887,1740852653251,-272.965252,0.00026024,7]
[354976888,1740852653260,-272.965252,0.00026024,7]
[354976889,1740852653270,-435.544906,0.00026024,7]
[354976890,1740852653281,-435.544906,0.00026024,7]
[354976891,1740852653290,-8763.1,0.00026097,2]
[354976892,1740852653300,-2704.83,0.00026097,2]
[354976893,1740852653313,-1000.0,0.00026097,5]
[354976894,1740852653329,-1061.28,0.00026097,2]
[354976895,1740852653339,-928.86,0.00026097,2]
[354976896,1740852653349,-901.34,0.00026097,2]
[354976897,1740852653358,-756.95,0.00026097,2]
[354976898,1740852653368,-1590.81,0.00026097,2]
[354976899,1740852653378,-500.0,0.00026098,2]
[354976900,1740852653388,-500.0,0.00026098,2]
[354976901,1740852653398,-1245.26,0.00026098,2]
[354976902,1740852653408,-500.0,0.00026098,2]
[354976903,1740852653418,-13114.62,0.00026098,2]
[354976904,1740852653427,-261.588615,0.00026098,7]
[354976905,1740852653437,-151.0,0.00026098,7]
[354976906,1740852653447,-261.588615,0.00026098,7]
[354976907,1740852653456,-500.0,0.00026098,2]
[354976908,1740852653466,-6634.82,0.00026098,2]
[354976909,1740852653480,-151.0,0.00026098,7]
[354976910,1740852653489,-151.0,0.00026098,7]
[354976911,1740852653499,-4285.24,0.00026098,2]
[354976912,1740852653509,-5569.82,0.00026098,2]
[354976913,1740852653519,-267.628782,0.00026098,7]
[354976914,1740852653528,-151.0,0.00026098,7]
[354976915,1740852653538,-267.628782,0.00026098,7]
[354976916,1740852653548,-1726.86,0.00026098,2]
[354976917,1740852653557,-1717.933302,0.00026098,7]
[354976918,1740852653567,-1717.933302,0.00026098,7]
[354976919,1740852653577,-500.0,0.00026098,2]
[354976920,1740852653586,-1264.87,0.00026098,2]
[354976921,1740852653672,-2964.03,0.00026098,2]
[354976922,1740852653682,-500.0,0.00026098,2]
[354976923,1740852653692,-2951.38,0.00026098,2]
[354976924,1740852653701,-500.0,0.00026098,2]
[354976925,1740852653711,-5269.69,0.00026098,2]
[354976926,1740852653721,-358.872943,0.00026098,7]
[354976927,1740852653730,-9493.32,0.00026098,2]
[354976928,1740852653739,-358.872943,0.00026098,7]
[354976929,1740852653749,-549.95,0.00026098,2]
[354976930,1740852653758,-464.318816,0.00026098,7]
[354976931,1740852653768,-464.318816,0.00026098,7]
[354976932,1740852653777,-500.0,0.00026098,2]
[354976933,1740852653786,-500.0,0.00026098,2]
[354976934,1740852653795,-1900.21,0.00026098,2]
[354976935,1740852653805,-3068.32,0.00026098,2]
[354976936,1740852653814,-837.13,0.00026098,2]
[354976937,1740852653824,-500.0,0.000261,2]
[354976938,1740852653833,-500.0,0.000261,2]
[354976939,1740852653842,-500.0,0.000261,2]
[354976940,1740852653853,-500.0,0.000261,2]
[354976941,1740852653863,-933.78,0.000261,2]
[354976942,1740852653873,-509.68,0.000261,2]
[354976943,1740852653882,-500.0,0.000261,2]
[354976944,1740852653892,-500.0,0.000261,2]
[354976945,1740852653902,-738.45,0.000261,2]
[354976946,1740852653911,-763.4,0.000261,2]
[354976947,1740852653921,-611.98349918,0.000261,2]
[354976948,1740852653931,-500.0,0.000261,2]
[354976949,1740852653941,-277.50860659,0.000261,2]
[354976950,1740852653952,-500.0,0.000261,2]
[354976951,1740852653961,-512.87,0.000261,2]
[354976952,1740852653971,-1382.1,0.000261,2]
[354976953,1740852653981,-1497.33,0.000261,2]
[354976954,1740852653991,-751.65,0.000261,2]
[354976955,1740852654001,-500.0,0.000261,2]
[354976956,1740852654012,-500.0,0.000261,2]
[354976957,1740852654022,-500.0,0.000261,2]
[354976958,1740852654032,-500.0,0.000261,2]
[354976959,1740852654041,-271.67,0.000261,2]
[354976960,1740852654051,-500.0,0.000261,2]
[354976961,1740852654061,-200.0,0.000261,2]
[354976962,1740852654070,-661.33,0.000261,2]
[354976963,1740852654080,-1747.31,0.000261,2]
[354976964,1740852654089,-500.0,0.000261,2]
[354976965,1740852654099,-500.0,0.000261,2]
[354976966,1740852654109,-500.0,0.000261,2]
[354976967,1740852654119,-500.0,0.000261,2]
[354976968,1740852654128,-500.0,0.000261,2]
[354976969,1740852654138,-966.23,0.000261,2]
[354976970,1740852654147,-500.0,0.000261,2]
[354976971,1740852654157,-551.32,0.000261,2]
[354976972,1740852654166,-634.14,0.000261,2]
[354976973,1740852654176,-514.07,0.000261,2]
[354976974,1740852654186,-500.0,0.000261,2]
[354976975,1740852654195,-500.0,0.000261,2]
[354976976,1740852654204,-1112.78,0.000261,2]
[354976977,1740852654213,-151.0,0.000261,7]
[354976978,1740852654222,-549.0,0.000261,2]
[354976979,1740852654232,-500.0,0.000261,2]
[354976980,1740852654245,-500.0,0.000261,2]
[354976981,1740852654254,-1017.66,0.000261,2]
[354976982,1740852654263,-1026.48,0.000261,2]
[354976983,1740852654273,-500.0,0.000261,2]
[354976984,1740852654282,-757.42,0.000261,2]
[354976985,1740852654291,-500.0,0.000261,2]
[354976986,1740852654301,-500.0,0.000261,2]
[354976987,1740852654310,-500.0,0.000261,2]
[354976988,1740852654320,-500.0,0.000261,2]
[354976989,1740852654329,-612.47,0.000261,2]
[354976990,1740852654339,-500.0,0.000261,2]
[354976991,1740852654348,-500.0,0.000261,2]
[354976992,1740852654357,-500.0,0.000261,2]
[354976993,1740852654366,-1526.17,0.000261,2]
[354976994,1740852654375,-151.0,0.000261,7]
[354976995,1740852654384,-500.0,0.000261,2]
[354976996,1740852654393,-151.0,0.000261,7]
[354976997,1740852654403,-500.0,0.000261,2]
[354976998,1740852654412,-500.0,0.000261,2]
[354976999,1740852654427,-151.0,0.000261,7]
[354977000,1740852654437,-665.61,0.000261,2]
[354977001,1740852654446,-151.0,0.000261,7]
[354977002,1740852654456,-1180.33,0.000261,2]
[354977003,1740852654466,-500.0,0.000261,2]
[354977004,1740852654475,-500.0,0.000261,2]
[354977005,1740852654486,-500.0,0.000261,2]
[354977006,1740852654495,-1010.478276,0.000261,7]
[354977007,1740852654505,-1010.478276,0.000261,7]
[354977008,1740852654515,-820.11,0.000261,2]
[354977009,1740852654526,-500.0,0.000261,2]
[354977010,1740852654536,-462.01369766,0.000261,2]
[354977011,1740852654545,-151.0,0.000261,7]
[354977012,1740852654555,-1995.87,0.000261,2]
[354977013,1740852654564,-500.0,0.000261,2]
[354977014,1740852654574,-894.55,0.000261,2]
[354977015,1740852654584,-500.0,0.000261,2]
[354977016,1740852654593,-500.0,0.000261,2]
[354977017,1740852654603,-189724.92,0.000261,2]
[354977018,1740852654614,-222.080022,0.000261,7]
[354977019,1740852654623,-951.89,0.000261,2]
[354977020,1740852654633,-222.080022,0.000261,7]
[354977021,1740852654643,-500.0,0.000261,2]
[354977022,1740852654652,-3641.32,0.000261,2]
[354977023,1740852654662,-1716.03,0.000261,2]
[354977024,1740852654671,-9862.53,0.000261,2]
[354977025,1740852654680,-500.0,0.000261,2]
[354977026,1740852654690,-500.0,0.000261,2]
[354977027,1740852654699,-2034.22,0.000261,2]
[354977028,1740852654709,-500.0,0.000261,2]
[354977029,1740852654718,-501.71481243,0.000261,2]
[354977030,1740852654728,-2482.06,0.000261,2]
[354977031,1740852654738,-642.54,0.000261,2]
[354977032,1740852654748,-500.0,0.000261,2]
[354977033,1740852654757,-4956.02,0.000261,2]
[354977034,1740852654767,-561.56,0.000261,2]
[354977035,1740852654775,-196.2690269,0.000261,2]
[354977036,1740852654785,-973.64,0.000261,2]
[354977037,1740852654795,-971.94,0.000261,2]
[354977038,1740852654805,-1823.11,0.000261,2]
[354977039,1740852654815,-550.05,0.000261,2]
[354977040,1740852654825,-1521.45,0.000261,2]
[354977041,1740852654835,-1346.89,0.000261,2]
[354977042,1740852654845,-539.15,0.000261,2]
[354977043,1740852654856,-518.11,0.000261,2]
[354977044,1740852654865,-1340.45,0.000261,2]
[354977045,1740852654875,-1137.2,0.000261,2]
[354977046,1740852654884,-500.0,0.000261,2]
[354977047,1740852654894,-500.0,0.000261,2]
[354977048,1740852654903,-1694.14,0.000261,2]
[354977049,1740852654913,-739.07,0.000261,2]
[354977050,1740852654922,-300.03030946,0.000261,2]
[354977051,1740852654932,-639.4,0.000261,2]
[354977052,1740852654941,-500.0,0.000261,2]
[354977053,1740852654951,-500.0,0.000261,2]
[354977054,1740852654961,-500.0,0.000261,2]
[354977055,1740852654970,-500.0,0.000261,2]
[354977056,1740852654980,-1048.8,0.000261,2]
[354977057,1740852654989,-500.0,0.000261,2]
[354977058,1740852654999,-500.0,0.000261,2]
[354977059,1740852655009,-500.0,0.000261,2]
[354977060,1740852655019,-500.0,0.000261,2]
[354977061,1740852655028,-605.31,0.000261,2]
[354977062,1740852655037,-500.0,0.000261,2]
[354977063,1740852655047,-500.0,0.000261,2]
[354977064,1740852655057,-1159.04,0.000261,2]
[354977065,1740852655067,-657.27,0.000261,2]
[354977066,1740852655076,-39446.22,0.000261,2]
[354977067,1740852655086,-500.0,0.000261,2]
[354977068,1740852655095,-893.58,0.000261,2]
[354977069,1740852655105,-1360.23,0.000261,2]
[354977070,1740852655114,-500.0,0.000261,2]
[354977071,1740852655123,-682.73,0.000261,2]
[354977072,1740852655133,-1972.1,0.000261,2]
[354977073,1740852655142,-500.0,0.000261,2]
[354977074,1740852655152,-500.0,0.000261,2]
[354977075,1740852655162,-1100.88,0.000261,2]
[354977076,1740852655172,-14683.36,0.000261,2]
[354977077,1740852655182,-500.0,0.000261,2]
[354977078,1740852655192,-1569.74,0.000261,2]
[354977079,1740852655202,-500.0,0.000261,2]
[354977080,1740852655211,-500.0,0.000261,2]
[354977081,1740852655221,-763.87,0.000261,2]
[354977082,1740852655231,-1612.88,0.000261,2]
[354977083,1740852655245,-711.0,0.000261,2]
[354977084,1740852655255,-748.59,0.000261,2]
[354977085,1740852655265,-512.73966726,0.000261,2]
[354977086,1740852655275,-979.62,0.000261,2]
[354977087,1740852655284,-500.0,0.000261,2]
[354977088,1740852655294,-500.0,0.000261,2]
[354977089,1740852655304,-1200.7,0.000261,2]
[354977090,1740852655315,-500.0,0.000261,2]
[354977091,1740852655324,-989.41,0.000261,2]
[354977092,1740852655334,-767.01,0.000261,2]
[354977093,1740852655344,-500.0,0.000261,2]
[354977094,1740852655354,-5207.94,0.000261,2]
[354977095,1740852655364,-500.0,0.000261,2]
[354977096,1740852655375,-500.0,0.000261,2]
[354977097,1740852655384,-500.0,0.000261,2]
[354977098,1740852655395,-1047.116429,0.000261,7]
[354977099,1740852655405,-708.97,0.000261,2]
[354977100,1740852655415,-500.0,0.000261,2]
[354977101,1740852655425,-1047.116429,0.000261,7]
[354977102,1740852655435,-917.66,0.000261,2]
[354977103,1740852655444,-151.0,0.00026101,7]
[354977104,1740852655456,-500.0,0.00026101,2]